[Event "56th Rubinstein Memorial A 2020"]
[Site "Polanica Zdroj"]
[Date "2020.08.23"]
[Round "9.3"]
[White "Pultinevicius, Paulius"]
[Black "Luba, Lukasz"]
[Result "1-0"]
[ECO "A05"]
[WhiteElo "2512"]
[BlackElo "2188"]
[Annotator "ChessBase"]
[PlyCount "63"]
[EventDate "2020.08.15"]
[EventType "swiss"]
[EventCountry "POL"]
[SourceTitle "playchess.com"]
[Source "ChessBase"]
[SourceQuality "1"]
[TimeControl "40/5400+30:1800+30"]

1. Nf3 {[%emt 0:00:00]} Nf6 {[%emt 0:00:00]} 2. c4 {[%emt 0:00:10]} g6 {[%emt 0:00:09]} 3. d4 {[%emt 0:00:41]} Bg7 {[%emt 0:01:13]} 4. g3 {[%emt 0:00:37]} c6 {[%emt 0:01:35]} 5. Bg2 {[%emt 0:00:06]} d5 {[%emt 0:00:17]} 6. Qb3 {[%emt 0:00:20]} Qb6 {[%emt 0:01:53]} 7. Nc3 {[%emt 0:00:36]} Nbd7 {[%emt 0:02:52]} 8. O-O {[%emt 0:01:43]} Qxb3 {[%emt 0:05:10]} 9. axb3 {[%emt 0:00:06]} Nb6 {[%emt 0:00:06]} 10. c5 {[%emt 0:01:55]} Nbd7 {[%emt 0:00:05]} 11. b4 {[%emt 0:00:05]} Ne4 {[%emt 0:00:16]} 12. Rd1 {[%emt 0:04:10]} f5 {[%emt 0:02:37]} 13. Bf4 {[%emt 0:02:48]} O-O {[%emt 0:01:40]} 14. Bc7 {[%emt 0:16:11]} Re8 {[%emt 0:04:40]} 15. b5 {[%emt 0:03:31]} Nf8 {[%emt 0:11:27]} 16. bxc6 {[%emt 0:05:20]} bxc6 {[%emt 0:00:18]} 17. e3 {[%emt 0:00:20]} Bb7 {[%emt 0:10:33]} 18. Ra5 {[%emt 0:02:07]} Ne6 {[%emt 0:04:42]} 19. Be5 {[%emt 0:00:18]} Bf6 {[%emt 0:04:40]} 20. Rda1 {[%emt 0:01:23]} g5 {[%emt 0:03:15]} 21. Bf1 {[%emt 0:05:39]} g4 {[%emt 0:06:31]} 22. Bxf6 {[%emt 0:00:44]} gxf3 {[%emt 0:00:16]} 23. Nxe4 {[%emt 0:03:31]} fxe4 {[%emt 0:00:08]} 24. Be5 {[%emt 0:00:04]} a6 {[%emt 0:02:47]} 25. b4 {[%emt 0:02:29]} Kf7 {[%emt 0:02:12]} 26. h4 {[%emt 0:01:33]} Rg8 {[%emt 0:04:42]} 27. Bxa6 {[%emt 0:02:12]} Ra7 {[%emt 0:05:10]} 28. Bf1 {[%emt 0:01:58]} Rxa5 {[%emt 0:02:03]} 29. bxa5 {[%emt 0:00:04]} Nf8 {[%emt 0:01:16]} 30. Rb1 {[%emt 0:00:39]} Ba8 {[%emt 0:00:08]} 31. Bh3 {[%emt 0:01:48]} e6 {[%emt 0:02:16]} 32. Rb8 {[%emt 0:00:05]} 1-0

[Event "56th Rubinstein Memorial A 2020"]
[Site "Polanica Zdroj"]
[Date "2020.08.23"]
[Round "9.3"]
[White "Topola, Rafal"]
[Black "Domanski, Lukasz"]
[Result "1/2-1/2"]
[ECO "B03"]
[WhiteElo "1808"]
[BlackElo "2039"]
[Annotator "NA"]
[PlyCount "73"]
[EventDate "2020.08.15"]
[EventType "swiss"]
[EventCountry "POL"]
[SourceTitle "playchess.com"]
[Source "ChessBase"]
[SourceQuality "1"]
[TimeControl "40/5400+30:1800+30"]

1. e4 {[%emt 0:00:00]} Nf6 {[%emt 0:02:13]} 2. e5 {[%emt 0:00:00]} Nd5 {[%emt 0:00:08]} 3. d4 {[%emt 0:00:00]} d6 {[%emt 0:00:32]} 4. c4 {[%emt 0:00:03]} Nb6 {[%emt 0:00:08]} 5. exd6 {[%emt 0:00:18]} exd6 {[%emt 0:00:15]} 6. Nc3 {[%emt 0:00:20]} Nc6 {[%emt 0:00:05]} 7. Be3 {[%emt 0:00:12]} Be7 {[%emt 0:00:17]} 8. b3 {[%emt 0:00:55] B03: Alekhine's Defence: Four Pawns Attack.} Bf6 {[%emt 0:02:13] [#]} 9. h3 $146 {[%emt 0:00:36]} ({Predecessor:} 9. Be2 O-O 10. Nf3 Bf5 11. O-O d5 12. c5 Nc8 13. Qd2 N8e7 14. h3 Be4 15. g4 h6 {½-½ (64) Mitkov,N (2578)-Minasian,A (2478) Ohrid 2001}) 9... Be6 {[%emt 0:08:13]} 10. Nf3 {[%emt 0:01:53]} d5 {[%emt 0:01:30]} 11. c5 {[%emt 0:01:10]} Nc8 {[%emt 0:00:10]} 12. Rb1 {[%emt 0:02:30]} N8e7 {[%emt 0:02:55]} 13. Bf4 {[%emt 0:21:10]} ({White should play} 13. Qd2 $11) 13... a6 {[%emt 0:03:33]} 14. g4 {[%emt 0:02:05]} Ng6 {[%emt 0:03:20]} 15. Qd2 {[%emt 0:02:06]} (15. Be3 $15) 15... Nh4 $2 {[%emt 0:08:21]} (15... Nxf4 $19 16. Qxf4 g5) 16. Nxh4 $1 {[%emt 0:02:26]} Bxh4 {[%emt 0:00:39]} 17. Bg2 {[%emt 0:04:42]} O-O {[%emt 0:03:25]} 18. O-O {[%emt 0:01:48]} h5 {[%emt 0:12:11]} 19. gxh5 {[%emt 0:04:34]} Bf6 {[%emt 0:05:11]} 20. Be5 $15 {[%emt 0:05:17]} (20. Ne2 $14) 20... Nxe5 {[%emt 0:02:18]} 21. dxe5 {[%emt 0:00:01]} Bxe5 {[%emt 0:01:40]} 22. Nxd5 {[%emt 0:01:02]} Bxd5 {[%emt 0:06:54]} 23. Qxd5 {[%emt 0:00:08]} Qf6 {[%emt 0:07:27]} 24. Rfe1 {[%emt 0:04:33]} Bd4 {[%emt 0:05:14]} 25. Qf3 {[%emt 0:00:49]} Qg5 {[%emt 0:01:52]} 26. Red1 {[%emt 0:11:17]} Rad8 {[%emt 0:04:30]} 27. Qxb7 {[%emt 0:02:51]} Qxc5 {[%emt 0:03:03]} 28. Qf3 {[%emt 0:02:27]} Rd6 {[%emt 0:01:16]} 29. Rbc1 {[%emt 0:00:42]} Qb6 {[%emt 0:02:02]} 30. Rc6 {[%emt 0:09:37]} Bxf2+ {[%emt 0:01:40]} 31. Kf1 {[%emt 0:00:01]} Rxd1+ {[%emt 0:04:01]} 32. Qxd1 {[%emt 0:00:02]} Qe3 {[%emt 0:01:36]} 33. Qe2 {[%emt 0:05:31]} Qxe2+ {[%emt 0:00:24]} 34. Kxe2 {[%emt 0:00:01]} Bb6 {[%emt 0:00:23]} 35. Rc4 {[%emt 0:01:03]} Rd8 {[%emt 0:02:59]} 36. Bb7 {[%emt 0:02:38]} a5 {[%emt 0:00:25]} 37. Re4 {[%emt 0:01:31]} 1/2-1/2

[Event "56th Rubinstein Memorial A 2020"]
[Site "Polanica Zdroj"]
[Date "2020.08.23"]
[Round "9.4"]
[White "Wojcik, Wieslaw"]
[Black "Kowalczyk, Wojciech"]
[Result "0-1"]
[ECO "E97"]
[WhiteElo "1863"]
[BlackElo "1873"]
[Annotator "NA"]
[PlyCount "86"]
[EventDate "2020.08.15"]
[EventType "swiss"]
[EventCountry "POL"]
[SourceTitle "playchess.com"]
[Source "ChessBase"]
[SourceQuality "1"]
[TimeControl "40/5400+30:1800+30"]

1. d4 {[%emt 0:00:00]} Nf6 {[%emt 0:00:00]} 2. Nf3 {[%emt 0:00:11]} g6 {[%emt 0:00:00]} 3. c4 {[%emt 0:00:10]} Bg7 {[%emt 0:00:00]} 4. Nc3 {[%emt 0:00:05]} O-O {[%emt 0:00:00]} 5. e4 {[%emt 0:00:05]} d6 {[%emt 0:00:00]} 6. Be2 {[%emt 0:00:16]} e5 {[%emt 0:00:08]} 7. O-O {[%emt 0:02:00]} Nc6 {[%emt 0:00:05]} 8. d5 {[%emt 0:06:32]} Ne7 {[%emt 0:00:07]} 9. b4 {[%emt 0:02:55]} Nh5 {[%emt 0:00:53]} 10. Qb3 {[%emt 0:05:41]} Nf4 {[%emt 0:02:27] E97: King's Indian: Classical Main Line (6...e5 7 0-0 Nc6): 8 Be3 and 8 d5 Ne7, not 9 Ne1.} 11. Bxf4 {[%emt 0:03:22]} exf4 {[%emt 0:00:02]} 12. Rac1 {[%emt 0:00:13]} Bg4 {[%emt 0:09:04]} 13. c5 {[%emt 0:06:36]} Bxf3 {[%emt 0:00:25]} 14. Bxf3 {[%emt 0:01:20] [#]} g5 $146 {[%emt 0:00:09]} ({Predecessor:} 14... f5 15. Rfe1 Rf7 16. Qc4 fxe4 17. Rxe4 Nf5 18. Rce1 a5 19. bxa5 dxc5 20. Qxc5 Bf8 {0-1 (40) Dihm,D-Haag,F GER corr 1996}) 15. Bg4 {[%emt 0:15:10]} Ng6 {[%emt 0:17:27]} 16. cxd6 {[%emt 0:02:53]} cxd6 {[%emt 0:00:15]} 17. Nb5 {[%emt 0:00:12]} Ne5 {[%emt 0:02:44]} (17... a6 $5 {[%cal Ra6b5]} 18. Nc7 Rb8 $14) 18. Bf5 {[%emt 0:00:28]} g4 {[%emt 0:00:49]} 19. f3 $2 {[%emt 0:01:58]} (19. Kh1 $14 {stays ahead.}) 19... Qb6+ {[%emt 0:01:50]} 20. Kh1 {[%emt 0:00:44]} Qxb5 {[%emt 0:00:42]} 21. fxg4 {[%emt 0:00:04]} Qd3 {[%emt 0:17:13]} 22. Qxd3 {[%emt 0:01:48]} Nxd3 $19 {[%emt 0:00:01]} 23. Rb1 {[%emt 0:01:54]} Bd4 {[%emt 0:04:43]} 24. g3 {[%emt 0:01:29]} fxg3 {[%emt 0:04:57]} 25. Kg2 {[%emt 0:01:36]} Ne5 {[%emt 0:04:51]} 26. Rbc1 {[%emt 0:02:53]} gxh2 {[%emt 0:02:24]} 27. Kxh2 {[%emt 0:02:04]} a5 {[%emt 0:04:58]} 28. b5 {[%emt 0:00:06]} Bb6 {[%emt 0:01:18]} 29. Kg3 {[%emt 0:00:18]} Kg7 {[%emt 0:00:44]} 30. a4 {[%emt 0:03:25]} Rae8 {[%emt 0:05:16]} 31. Rh1 {[%emt 0:00:23]} Rh8 {[%emt 0:00:11]} 32. Rh5 {[%emt 0:00:40]} Re7 {[%emt 0:02:39]} 33. g5 {[%emt 0:03:28]} Rc7 {[%emt 0:01:04]} 34. Rch1 {[%emt 0:01:28]} Rc3+ {[%emt 0:03:09]} 35. Kg2 {[%emt 0:00:07]} Ng6 {[%emt 0:00:16]} 36. Bxg6 {[%emt 0:01:47]} fxg6 {[%emt 0:00:22]} 37. R5h4 {[%emt 0:00:10]} Rc2+ {[%emt 0:03:14]} 38. Kf3 {[%emt 0:00:28]} Rf8+ {[%emt 0:00:31]} 39. Kg4 {[%emt 0:00:07]} Rg2+ {[%emt 0:00:36]} 40. Kh3 {[%emt 0:00:00]} Rxg5 {[%emt 0:00:00]} 41. e5 {[%emt 0:01:21]} Rxe5 {[%emt 0:00:54]} 42. Kg2 {[%emt 0:00:23]} Re2+ {[%emt 0:01:06]} 43. Kh3 {[%emt 0:00:14]} h5 {[%emt 0:00:49]} 0-1

[Event "56th Rubinstein Memorial A 2020"]
[Site "Polanica Zdroj"]
[Date "2020.08.23"]
[Round "9.5"]
[White "Butkiewicz, Lukasz"]
[Black "Luberanski, Jakub"]
[Result "1-0"]
[ECO "C77"]
[WhiteElo "2400"]
[BlackElo "2146"]
[Annotator "ChessBase"]
[PlyCount "65"]
[EventDate "2020.08.15"]
[EventType "swiss"]
[EventCountry "POL"]
[SourceTitle "playchess.com"]
[Source "ChessBase"]
[SourceQuality "1"]
[TimeControl "40/5400+30:1800+30"]

1. e4 {[%emt 0:00:00]} e5 {[%emt 0:00:00]} 2. Nf3 {[%emt 0:00:06]} Nc6 {[%emt 0:00:00]} 3. Bb5 {[%emt 0:00:10]} a6 {[%emt 0:00:00]} 4. Ba4 {[%emt 0:00:04]} Nf6 {[%emt 0:00:00]} 5. d3 {[%emt 0:00:12]} Bc5 {[%emt 0:03:03]} 6. c3 {[%emt 0:04:09]} b5 {[%emt 0:00:16]} 7. Bb3 {[%emt 0:00:41]} O-O {[%emt 0:01:46]} 8. O-O {[%emt 0:03:28]} d6 {[%emt 0:00:51]} 9. h3 {[%emt 0:02:32]} h6 {[%emt 0:04:05]} 10. Be3 {[%emt 0:06:46]} Ba7 {[%emt 0:05:15]} 11. Nbd2 {[%emt 0:10:38]} Be6 {[%emt 0:06:48]} 12. Bxe6 {[%emt 0:11:53]} fxe6 {[%emt 0:00:06]} 13. d4 {[%emt 0:00:05]} d5 {[%emt 0:21:42]} 14. Qc2 {[%emt 0:07:42]} Nxe4 {[%emt 0:10:47]} 15. Nxe4 {[%emt 0:01:08]} dxe4 {[%emt 0:00:05]} 16. Qxe4 {[%emt 0:00:09]} Qd5 {[%emt 0:00:10]} 17. Qg4 {[%emt 0:04:09]} Kh7 {[%emt 0:07:41]} 18. Rad1 {[%emt 0:05:15]} exd4 {[%emt 0:11:21]} 19. Nxd4 {[%emt 0:00:26]} Nxd4 {[%emt 0:03:51]} 20. Bxd4 {[%emt 0:01:20]} Bxd4 {[%emt 0:00:40]} 21. Rxd4 {[%emt 0:00:09]} Qxa2 {[%emt 0:02:18]} 22. Rd7 {[%emt 0:00:32]} Rg8 {[%emt 0:00:06]} 23. Re1 {[%emt 0:18:28]} Rae8 {[%emt 0:00:44]} 24. Re3 {[%emt 0:02:36]} Qxb2 {[%emt 0:05:49]} 25. Rg3 {[%emt 0:02:12]} Qc1+ {[%emt 0:01:06]} 26. Kh2 {[%emt 0:00:20]} Qg5 {[%emt 0:00:06]} 27. Qd4 {[%emt 0:01:25]} c5 {[%emt 0:00:15]} 28. Qe4+ {[%emt 0:02:00]} Qf5 {[%emt 0:00:06]} 29. Qb7 {[%emt 0:00:05]} Qe5 {[%emt 0:01:03]} 30. f4 {[%emt 0:01:36]} Qf5 {[%emt 0:01:53]} 31. Rdxg7+ {[%emt 0:10:07]} Kh8 {[%emt 0:00:08]} 32. Rf7 {[%emt 0:01:10]} Qc2 {[%emt 0:01:25]} 33. f5 1-0

[Event "56th Rubinstein Memorial A 2020"]
[Site "Polanica Zdroj"]
[Date "2020.08.23"]
[Round "9.5"]
[White "Kolodziejski, Piotr"]
[Black "Galant, Ireneusz"]
[Result "1-0"]
[ECO "B32"]
[WhiteElo "1928"]
[BlackElo "1803"]
[Annotator "NA"]
[PlyCount "65"]
[EventDate "2020.08.15"]
[EventType "swiss"]
[EventCountry "POL"]
[SourceTitle "playchess.com"]
[Source "ChessBase"]
[SourceQuality "1"]
[TimeControl "40/5400+30:1800+30"]

1. e4 {[%emt 0:00:00]} c5 {[%emt 0:00:00]} 2. Nf3 {[%emt 0:00:00]} Nc6 {[%emt 0:00:00]} 3. d4 {[%emt 0:00:00]} cxd4 {[%emt 0:00:00]} 4. Nxd4 {[%emt 0:00:00]} e5 {[%emt 0:00:04]} 5. Nb5 {[%emt 0:00:00]} a6 {[%emt 0:00:14]} 6. Nd6+ {[%emt 0:00:18]} Bxd6 {[%emt 0:00:11]} 7. Qxd6 {[%emt 0:00:04]} Qe7 {[%emt 0:00:04]} 8. Qd1 {[%emt 0:00:50]} Nf6 {[%emt 0:00:38]} 9. Nc3 {[%emt 0:00:52]} d6 {[%emt 0:00:13]} 10. Be2 {[%emt 0:00:24] B32: Sicilian: Löwenthal and Kalashnikov Variations.} Be6 {[%emt 0:00:43]} 11. Be3 {[%emt 0:01:20]} O-O {[%emt 0:00:24]} 12. O-O {[%emt 0:00:19]} b5 {[%emt 0:08:34]} 13. a3 {[%emt 0:11:23]} h6 {[%emt 0:08:05]} 14. Bf3 {[%emt 0:14:06] [#]} Rac8 $146 {[%emt 0:05:56]} ({Predecessor:} 14... Qc7 15. Kh1 Ne7 16. g4 Qd7 17. Rg1 d5 18. g5 Nxe4 19. Nxe4 dxe4 20. Qxd7 Bxd7 21. Bxe4 {0-1 (55) Jonasson,J-Wikfeldt,K Reykjavik 2000}) 15. Qd3 $2 {[%emt 0:07:49]} (15. Nd5 $11 {and White is okay.} Bxd5 16. exd5) 15... Bc4 {[%emt 0:01:24] Skewer} 16. Qd2 {[%emt 0:01:07]} Bxf1 {[%emt 0:00:13]} 17. Kxf1 {[%emt 0:02:58]} Qc7 {[%emt 0:04:08]} (17... Na5 $19 18. Qd3 Rfe8) 18. Rd1 {[%emt 0:05:31]} Rfd8 {[%emt 0:02:12]} 19. Bxh6 {[%emt 0:10:34]} Ne7 $11 {[%emt 0:12:39]} (19... gxh6 $15 20. Qxh6 Qe7) 20. Bg5 {[%emt 0:09:42]} Qd7 {[%emt 0:09:55]} 21. Bxf6 {[%emt 0:03:32]} gxf6 {[%emt 0:00:50]} 22. Qh6 {[%emt 0:00:28]} Rxc3 {[%emt 0:08:47]} 23. bxc3 {[%emt 0:00:17]} Qe6 {[%emt 0:03:45]} 24. Rd3 {[%emt 0:01:18]} Ng6 {[%emt 0:22:30]} 25. Bh5 {[%emt 0:04:33]} Qa2 {[%emt 0:09:57]} 26. Bxg6 {[%emt 0:01:33]} fxg6 {[%emt 0:00:14]} 27. Qxg6+ {[%emt 0:00:06]} Kf8 {[%emt 0:00:03]} 28. Qxf6+ {[%emt 0:00:18]} Ke8 {[%emt 0:00:00]} 29. Qg6+ {[%emt 0:03:04]} Ke7 {[%emt 0:01:12]} 30. Qg5+ {[%emt 0:00:05]} Ke8 {[%emt 0:00:21]} 31. Qc1 {[%emt 0:01:06]} Qc4 {[%emt 0:00:34]} 32. f3 {[%emt 0:03:26]} Kd7 {[%emt 0:00:08]} 33. Qb2 {[%emt 0:02:41]} 1-0

[Event "56th Rubinstein Memorial A 2020"]
[Site "Polanica Zdroj"]
[Date "2020.08.23"]
[Round "9.6"]
[White "Lukasiewicz, Krzysztof"]
[Black "Goluch, Piotr"]
[Result "1-0"]
[ECO "B13"]
[WhiteElo "2343"]
[BlackElo "2376"]
[Annotator "ChessBase"]
[PlyCount "87"]
[EventDate "2020.08.15"]
[EventType "swiss"]
[EventCountry "POL"]
[SourceTitle "playchess.com"]
[Source "ChessBase"]
[SourceQuality "1"]
[TimeControl "40/5400+30:1800+30"]

1. d4 {[%emt 0:00:00]} Nf6 {[%emt 0:00:00]} 2. Bf4 {[%emt 0:00:00]} c5 {[%emt 0:00:00]} 3. e3 {[%emt 0:00:00]} cxd4 {[%emt 0:00:00]} 4. exd4 {[%emt 0:00:00]} d5 {[%emt 0:00:00]} 5. Bd3 {[%emt 0:02:44]} Nc6 {[%emt 0:00:00]} 6. c3 {[%emt 0:00:03]} Bg4 {[%emt 0:00:00]} 7. Qb3 {[%emt 0:01:44]} Qc8 {[%emt 0:00:01]} 8. Nd2 {[%emt 0:00:04]} e6 {[%emt 0:00:07]} 9. Ngf3 {[%emt 0:00:04]} Be7 {[%emt 0:00:35]} 10. O-O {[%emt 0:13:04]} O-O {[%emt 0:00:04]} 11. Rfe1 {[%emt 0:01:52]} Bh5 {[%emt 0:00:06]} 12. Ne5 {[%emt 0:02:30]} Nxe5 {[%emt 0:00:14]} 13. dxe5 {[%emt 0:02:55]} Nd7 {[%emt 0:01:02]} 14. Qc2 {[%emt 0:00:07]} Bg6 {[%emt 0:00:14]} 15. Bxg6 {[%emt 0:00:04]} fxg6 {[%emt 0:03:35]} 16. Bg3 {[%emt 0:01:29]} Bc5 {[%emt 0:00:05]} 17. Qb3 {[%emt 0:03:53]} Nb6 {[%emt 0:04:16]} 18. Rac1 {[%emt 0:04:58]} Nc4 {[%emt 0:00:06]} 19. Nf3 {[%emt 0:00:51]} Qd7 {[%emt 0:11:11]} 20. Qc2 {[%emt 0:02:50]} Rac8 {[%emt 0:04:56]} 21. b3 {[%emt 0:05:29]} Na3 {[%emt 0:00:35]} 22. Qd3 {[%emt 0:00:04]} b5 {[%emt 0:01:02]} 23. c4 {[%emt 0:05:36]} bxc4 {[%emt 0:11:57]} 24. bxc4 {[%emt 0:01:17]} d4 {[%emt 0:00:10]} 25. Red1 {[%emt 0:02:16]} Qa4 {[%emt 0:10:25]} 26. Bh4 {[%emt 0:08:07]} Rfe8 {[%emt 0:18:58]} 27. Bg5 {[%emt 0:02:52]} Bb6 {[%emt 0:01:23]} 28. Qb3 {[%emt 0:12:02]} Qa6 {[%emt 0:00:02]} 29. Nxd4 {[%emt 0:03:11]} h6 {[%emt 0:07:14]} 30. Nb5 {[%emt 0:02:54]} hxg5 {[%emt 0:00:02]} 31. Nxa3 {[%emt 0:00:23]} Rf8 {[%emt 0:00:04]} 32. Rc2 {[%emt 0:01:33]} Bc5 {[%emt 0:00:02]} 33. Nb5 {[%emt 0:00:15]} Rf4 {[%emt 0:02:56]} 34. g3 {[%emt 0:04:54]} Rff8 {[%emt 0:00:05]} 35. Nd6 {[%emt 0:01:47]} Rcd8 {[%emt 0:04:50]} 36. Rcd2 {[%emt 0:00:28]} Qc6 {[%emt 0:00:30]} 37. Qc2 {[%emt 0:01:15]} Qf3 {[%emt 0:01:37]} 38. Ne4 {[%emt 0:04:39]} Rxd2 {[%emt 0:02:57]} 39. Rxd2 {[%emt 0:00:11]} Bb4 {[%emt 0:00:48]} 40. Nxg5 {[%emt 0:00:00]} Qh5 {[%emt 0:00:00]} 41. Nxe6 {[%emt 0:06:58]} Re8 {[%emt 0:04:23]} 42. Nf4 {[%emt 0:02:09]} Qxe5 {[%emt 0:00:26]} 43. Re2 {[%emt 0:00:05]} Qa1+ {[%emt 0:00:05]} 44. Kg2 {[%emt 0:00:04]} 1-0

[Event "56th Rubinstein Memorial A 2020"]
[Site "Polanica Zdroj"]
[Date "2020.08.23"]
[Round "9.6"]
[White "Siekanska, Maria"]
[Black "Polak, Michal"]
[Result "1-0"]
[ECO "E49"]
[WhiteElo "1928"]
[BlackElo "1878"]
[Annotator "NA"]
[PlyCount "57"]
[EventDate "2020.08.15"]
[EventType "swiss"]
[EventCountry "POL"]
[SourceTitle "playchess.com"]
[Source "ChessBase"]
[SourceQuality "1"]
[TimeControl "40/5400+30:1800+30"]

{[%evp 16,39,0,32767,14,13,19,0,0,0,44,20,21,-15,0,14,28,36,55,62,72,60,89,32767,32767,102]} 1. d4 {[%emt 0:00:00]} Nf6 {[%emt 0:03:43]} 2. c4 {[%emt 0:00:00]} e6 {[%emt 0:00:05]} 3. Nc3 {[%emt 0:00:00]} Bb4 {[%emt 0:00:07]} 4. e3 {[%emt 0:00:00]} O-O {[%emt 0:00:19]} 5. Bd3 {[%emt 0:00:04]} d5 {[%emt 0:00:06]} 6. a3 {[%emt 0:00:45]} Bxc3+ {[%emt 0:00:44]} 7. bxc3 {[%emt 0:00:08]} c5 {[%emt 0:01:18]} 8. cxd5 {[%emt 0:00:41]} exd5 {[%emt 0:00:39]} 9. Ne2 {[%emt 0:00:44]} Nc6 {[%emt 0:04:06]} 10. O-O {[%emt 0:01:15]} Re8 {[%emt 0:03:58]} 11. f3 {[%emt 0:11:11]} b6 {[%emt 0:07:45]} 12. Ng3 {[%emt 0:01:42]} a5 {[%emt 0:01:40] [#] E49: Nimzo-Indian: Rubinstein: 5 Bd3 d5 6 a3 Bxc3+ 7 bxc3.} 13. Qd2 $146 {[%emt 0:05:43]} ({Predecessor:} 13. Kh1 Ba6 14. Bxa6 Rxa6 15. Ra2 Ra7 16. a4 Rae7 17. Qb3 cxd4 18. cxd4 Nb4 19. Re2 Rc7 20. Ba3 {0-1 (40) Tregubov,P (2585)-Mareco,S (2635) Doha 2016}) 13... Ba6 {[%emt 0:01:59]} 14. Bb2 {[%emt 0:01:10]} (14. Bxa6 $14 Rxa6 15. a4) 14... Bxd3 {[%emt 0:00:40]} 15. Qxd3 {[%emt 0:00:09]} Ra7 {[%emt 0:19:06]} 16. e4 {[%emt 0:12:27]} dxe4 {[%emt 0:00:35]} 17. fxe4 {[%emt 0:00:21]} Rd7 {[%emt 0:10:48] [#]} 18. Rad1 $1 {[%emt 0:03:14]} Ne5 {[%emt 0:07:27]} (18... h5 $1 $11 {remains equal.}) 19. Qe2 {[%emt 0:06:37]} Nc6 {[%emt 0:01:33]} 20. d5 $16 {[%emt 0:02:19]} Nxd5 {[%emt 0:04:19]} 21. c4 {[%emt 0:02:43]} Nf4 {[%emt 0:10:33]} 22. Qg4 {[%emt 0:00:33]} Ne6 {[%emt 0:03:36]} 23. Rxd7 {[%emt 0:00:26]} Qxd7 {[%emt 0:00:12]} 24. Nh5 {[%emt 0:01:08]} Qd2 {[%emt 0:08:21]} 25. Nf6+ {[%emt 0:01:31]} Kh8 {[%emt 0:00:53]} 26. Nxe8 {[%emt 0:00:19]} Qxb2 {[%emt 0:00:23]} 27. Qxe6 {[%emt 0:00:17]} Qd4+ {[%emt 0:01:32]} 28. Kh1 {[%emt 0:00:07]} fxe6 {[%emt 0:00:41]} 29. Rf8# {[%emt 0:00:05]} 1-0

[Event "56th Rubinstein Memorial A 2020"]
[Site "Polanica Zdroj"]
[Date "2020.08.23"]
[Round "9.7"]
[White "Antoniewicz, Jakub"]
[Black "Jedynak, January"]
[Result "1-0"]
[ECO "D02"]
[WhiteElo "1806"]
[BlackElo "1887"]
[Annotator "NA"]
[PlyCount "113"]
[EventDate "2020.08.15"]
[EventType "swiss"]
[EventCountry "POL"]
[SourceTitle "playchess.com"]
[Source "ChessBase"]
[SourceQuality "1"]
[TimeControl "40/5400+30:1800+30"]

1. d4 {[%emt 0:00:00]} d5 {[%emt 0:00:00]} 2. Nf3 {[%emt 0:00:30]} e6 {[%emt 0:00:30]} 3. g3 {[%emt 0:00:30]} c6 {[%emt 0:00:30]} 4. Bg2 {[%emt 0:00:30]} f5 {[%emt 0:00:30]} 5. O-O {[%emt 0:00:30]} Nf6 {[%emt 0:00:30]} 6. c4 {[%emt 0:01:08]} Bd6 {[%emt 0:00:30]} 7. b3 {[%emt 0:01:34]} Qe7 {[%emt 0:00:30]} 8. Bb2 {[%emt 0:00:43]} Nbd7 {[%emt 0:02:15]} 9. Qc1 {[%emt 0:02:20] A90: Dutch Defence: Miscellaneous and Modern Stonewall (with ...Bd6).} O-O {[%emt 0:04:57]} 10. Ba3 {[%emt 0:00:30]} c5 {[%emt 0:00:30]} (10... Ne4 $11) 11. Nc3 {[%emt 0:15:21] [#]} a6 $146 {[%emt 0:08:44]} (11... b6 $14) ({Predecessor:} 11... cxd4 12. Bxd6 Qxd6 13. Nb5 Qb6 14. Nbxd4 Ne4 15. b4 e5 16. c5 Qxb4 17. Ne6 Rf6 {½-½ (87) Poobalasingam,P (2068)-Shaw,D (2201) Sunningdale 2006}) 12. cxd5 {[%emt 0:07:02]} exd5 {[%emt 0:01:43] [#]} (12... cxd4 $16 13. Bxd6 Qxd6) 13. dxc5 {[%emt 0:02:01]} (13. Nh4 $1 $18) 13... Nxc5 {[%emt 0:00:30]} 14. Rd1 {[%emt 0:18:51]} (14. Qd2 $14) 14... Be6 {[%emt 0:03:51] [#]} (14... Nce4 $11 15. Bxd6 Qxd6) 15. Ng5 $1 {[%emt 0:04:45]} Rac8 {[%emt 0:01:13]} 16. Qd2 {[%emt 0:08:31]} Nfe4 {[%emt 0:12:19]} 17. Ngxe4 {[%emt 0:01:02]} Nxe4 {[%emt 0:02:21]} 18. Bxd6 {[%emt 0:00:30]} Qxd6 {[%emt 0:00:42]} 19. Nxe4 {[%emt 0:00:30]} fxe4 {[%emt 0:00:30]} 20. Bxe4 {[%emt 0:00:30]} Qc5 {[%emt 0:01:01]} 21. Bf3 {[%emt 0:00:41]} Rcd8 $18 {[%emt 0:04:05]} 22. Qd4 {[%emt 0:02:37]} Qe7 {[%emt 0:01:33]} 23. Rac1 {[%emt 0:01:55]} Rd7 {[%emt 0:00:44]} 24. Rc5 {[%emt 0:03:11]} Rfd8 {[%emt 0:00:30]} 25. Rdc1 {[%emt 0:00:33]} Qf7 {[%emt 0:02:50]} 26. Rc8 {[%emt 0:02:16]} Qe8 {[%emt 0:00:53]} 27. R8c7 {[%emt 0:01:17]} Qe7 {[%emt 0:01:46]} 28. Qc5 {[%emt 0:02:52]} Rxc7 {[%emt 0:01:03]} 29. Qxc7 {[%emt 0:00:30]} Rd7 {[%emt 0:00:44]} 30. Qb8+ {[%emt 0:01:03]} Rd8 {[%emt 0:00:41]} 31. Rc7 {[%emt 0:01:24]} Qf6 {[%emt 0:03:33]} 32. Qxb7 {[%emt 0:00:30]} Bh3 {[%emt 0:04:10]} 33. Rc1 {[%emt 0:04:22]} Qb2 {[%emt 0:01:19]} 34. Qc7 {[%emt 0:00:30]} Rd7 {[%emt 0:04:40]} 35. Qc2 {[%emt 0:01:29]} Qa3 {[%emt 0:00:48]} 36. Bg2 {[%emt 0:00:30]} Bf5 {[%emt 0:00:30]} 37. Qd2 {[%emt 0:01:55]} Qd6 {[%emt 0:00:30]} 38. e3 {[%emt 0:00:47]} d4 {[%emt 0:01:14]} 39. Qxd4 {[%emt 0:04:22]} Qa3 {[%emt 0:04:07]} 40. Qc4+ {[%emt 0:00:30]} Kf8 {[%emt 0:00:31]} 41. e4 {[%emt 0:31:20]} Be6 {[%emt 0:30:39]} 42. Qc2 {[%emt 0:01:31]} Rd8 {[%emt 0:00:52]} 43. Qb1 {[%emt 0:02:19]} Rd2 {[%emt 0:03:20]} 44. Rc2 {[%emt 0:00:00]} Rd4 {[%emt 0:00:00]} 45. h4 {[%emt 0:00:00]} Qd6 {[%emt 0:00:00]} 46. Qb2 {[%emt 0:00:00]} Rd1+ {[%emt 0:00:00]} 47. Kh2 {[%emt 0:00:00]} Rd3 {[%emt 0:00:00]} 48. Qc1 {[%emt 0:00:00]} Qd4 {[%emt 0:00:00]} 49. Qf4+ {[%emt 0:00:00]} Ke7 {[%emt 0:00:00]} 50. Bh3 {[%emt 0:00:00]} Bxh3 {[%emt 0:00:00]} 51. Kxh3 {[%emt 0:00:00]} Rd1 {[%emt 0:00:00]} 52. Qg5+ {[%emt 0:00:00]} Ke6 {[%emt 0:00:00]} 53. Qf5+ {[%emt 0:00:00]} Kd6 {[%emt 0:00:00]} 54. Qf8+ {[%emt 0:00:00]} Kd7 {[%emt 0:00:00]} 55. Qc8+ {[%emt 0:00:00]} Ke7 {[%emt 0:00:00]} 56. Rc7+ {[%emt 0:00:00]} Kf6 {[%emt 0:00:00]} 57. Qf5# {[%emt 0:00:00]} 1-0